Cogmind - Beta 13 @@@ ROGUE MODE // 2024.06.10 @ 01:02:44 Player: annull Result: Destroyed by G-34 Mercenary with Small Laser Performance ------------- Evolutions (1) 500 Regions Visited (2) 400 Robots Destroyed (13) 65 Value Destroyed (302) 302 Prototype IDs (0) 0 Alien Tech Used (0) 0 Bonus (0) 0 TOTAL SCORE: 1267 Bonus ------- None Cogmind --------- Core Integrity 0/400 Matter 265/300 Energy 96/100 System Corruption 0% Temperature Cool (21) Movement Core (50) Location -9/Materials Parts ------- > --- POWER (1) -------- (None) > --- PROPULSION (4) --- (None) > --- UTILITY (2) ------ (None) > --- WEAPON (2) ------- (None) > --- INVENTORY (5) ---- Aluminum Leg ECM Suite ECM Suite Peak State ------------ > --- POWER ------------ Light Ion Engine > --- PROPULSION ------- Aluminum Leg Aluminum Leg Aluminum Leg Aluminum Leg > --- UTILITY ---------- Structural Scanner Sensor Array > --- WEAPON ----------- Heavy EM Pulse Gun Assault Rifle > --- INVENTORY -------- Ion Engine ECM Suite ECM Suite [Rating: 10] Favorites ----------- Power Light Ion Engine Engine Light Ion Engine Propulsion Aluminum Leg Leg Aluminum Leg Flight Unit Flight Unit Utility Small Storage Unit Device Sensor Array Storage Small Storage Unit Protection Light Armor Plating Weapon Assault Rifle Energy Gun Heavy EM Pulse Gun Ballistic Gun Assault Rifle Build | -11 -10 -9 ------- Run | Yrd Mat Mat Slots Evolved 2 | . . 2 Power . | . . . Propulsion 2 | . . 2 Utility . | . . . Weapon . | . . . Parts Attached 27 | 7 6 14 Power 2 | 1 . 1 Engine 2 | 1 . 1 Core . | . . . Reactor . | . . . Propulsion 12 | 2 2 8 Treads . | . . . Leg 10 | 2 2 6 Wheel . | . . . Hover . | . . . Flight 2 | . . 2 Utility 8 | 1 4 3 Device 6 | . 3 3 Storage 1 | 1 . . Processor . | . . . Hackware . | . . . Protection 1 | . 1 . Artifact . | . . . Weapon 5 | 3 . 2 Energy Gun 3 | 1 . 2 Energy Cannon . | . . . Ballistic Gun 2 | 2 . . Ballistic Cannon . | . . . Launcher . | . . . Special Weapon . | . . . Impact Weapon . | . . . Slashing Weapon . | . . . Piercing Weapon . | . . . Special Melee Weapon . | . . . Unidentified Prototypes . | . . . Parts Lost 8 | . . 8 Power 2 | . . 2 Propulsion 2 | . . 2 Utility 1 | . . 1 Weapon 3 | . . 3 Highest Loss Streak 7 | . . 7 To Critical Strikes . | . . . Average Slot Usage (%) 87 | . 96 77 Engine 11 | . 14 9 Leg 28 | . 28 29 Device 11 | . 8 15 Storage 8 | . 14 2 Protection 1 | . 2 . Energy Gun 2 | . . 5 Ballistic Gun 20 | . 28 12 Naked Turns 9 | . . 9 Heaviest Build 14 | 12 14 13 Greatest Support 40 | 20 20 40 Greatest Overweight (x) 2 | . . 2 Average Overweight (x) . | . . . Largest Inventory Capacity 8 | 8 8 8 Average Capacity 7 | 7 8 5 Most Carried 8 | 4 8 7 Average Carried 4 | 3 6 4 Final Capacity 8 | 8 8 5 Final Carried 7 | 4 7 3 Class Distribution -------------------- 100% | Mutant Dominant Class ---------------- Mutant | -10/Materials Mutant | -9/Materials Resources | -11 -10 -9 ----------- Run | Yrd Mat Mat Matter Collected 490 | 211 176 103 Remotely . | . . . Salvage Created 379 | . 231 148 Parts 28 | . 9 19 Haulers Intercepted . | . . . Recyclers Shooed 1 | . . 1 Parts Field Recycled . | . . . Retrieved Matter . | . . . Parts Self-Destructed . | . . . Prevented . | . . . Kills | -11 -10 -9 ------- Run | Yrd Mat Mat Combat Hostiles Destroyed 12 | . 6 6 Melee 1 | . . 1 Guns 11 | . 6 5 Classes Destroyed 3 | . 1 2 Worker 1 | . . 1 Swarmer 5 | . . 5 Grunt 7 | . 6 1 Best Kill Streak 4 | . 3 4 Combat Bots Only 3 | . 3 3 Max Kills in Single Turn 2 | . 1 2 Gunslinging 1 | . . 1 Exploded . | . . . Melee 1 | . . 1 Uniques/NPCs Destroyed . | . . . Combat | -11 -10 -9 -------- Run | Yrd Mat Mat Hostile Shots Fired 144 | . 36 108 Missed 36 | . 9 27 Damage Taken 1100 | . 332 768 Core 483 | . 77 406 Absorbed by Shields . | . . . Core Remaining (%) 84 | 100 69 . Volleys Fired 34 | . 21 13 Largest 2 | . 2 2 Hottest 65 | . 40 65 Shots Fired 61 | . 42 19 Gun 61 | . 42 19 Cannon . | . . . Launcher . | . . . Special . | . . . Kinetic 54 | . 42 12 Thermal . | . . . Explosive . | . . . Electromagnetic 7 | . . 7 Robot Hit Streak 6 | . 6 6 Robot Miss Streak 3 | . 3 2 Penetration Max . | . . . Secondary Targets 2 | . . 2 Max Gunslinging Chain 1 | . . 1 Shots Hit Robots 37 | . 25 12 Core Hits 23 | . 13 10 Critical Kills . | . . . Critical Parts Destroyed . | . . . Critical Strikes . | . . . Melee Attacks . | . . . Impact . | . . . Slashing . | . . . Piercing . | . . . Sneak Attacks . | . . . Combat Hostiles . | . . . Follow-up Attacks . | . . . Damage Inflicted 472 | . 300 172 Guns 450 | . 298 152 Cannons . | . . . Explosions . | . . . Melee . | . . . Ramming 22 | . 2 20 Kinetic 366 | . 298 68 Thermal . | . . . Explosive . | . . . Electromagnetic 84 | . . 84 Impact . | . . . Slashing . | . . . Piercing . | . . . Highest Corruption . | . . . Average Corruption . | . . . Corruption Purged . | . . . Corruption Blocked . | . . . Overload Shots . | . . . Overflow Damage . | . . . Projectiles . | . . . Explosions . | . . . Melee . | . . . Knockbacks . | . . . Impact . | . . . Kinetic . | . . . Secondary . | . . . Self-Inflicted Damage 9 | . . 9 Shots . | . . . Rammed 5 | . . 5 Targets Rammed 7 | . 2 5 Kicked 2 | . 2 . Crushed . | . . . Highest Temperature 25 | . 25 1 Average Temperature 9 | . 10 1 Received Heat Transfer 309 | . 189 120 Siege Activations . | . . . Robots Corrupted . | . . . Combat Hostiles . | . . . Parts Fried . | . . . Impact Corruptions . | . . . Robots Melted . | . . . Combat Hostiles . | . . . Parts Melted . | . . . Heat Transferred . | . . . Parts Sabotaged . | . . . Parts Stolen . | . . . Parts Stripped . | . . . Power Chain Reactions . | . . . Alert | -11 -10 -9 ------- Run | Yrd Mat Mat Peak Influence 270 | . 202 270 Initial 85 | . . 85 Average 6 | . 106 170 Maximum Alert Level 1 | . 1 1 Low Security (%) 98 | 100 95 61 Level 1 1 | . 4 38 Level 2 . | . . . Level 3 . | . . . Level 4 . | . . . Level 5 . | . . . High Security . | . . . Max Security . | . . . Squads Dispatched 3 | . 2 1 Investigation 1 | . 1 . Extermination . | . . . Reinforcement 2 | . 1 1 Assault . | . . . Garrison . | . . . Intercept . | . . . Searches Triggered . | . . . Construction Impeded . | . . . Haulers Reinforced . | . . . Active Scanning Responses . | . . . Cargo Convoy Interrupts . | . . . Stealth | -11 -10 -9 --------- Run | Yrd Mat Mat Distress Signals 2 | . 1 1 Communications Jammed . | . . . Distress Signals . | . . . Times Spotted 26 | . 10 16 Peak Tracking Total 9 | . 3 9 Tactical Retreats 2 | . 1 1 Traps | -11 -10 -9 ------- Run | Yrd Mat Mat Traps Triggered . | . . . Indirectly . | . . . Trap Hack Attempts . | . . . Triggered . | . . . Disarmed . | . . . Reprogrammed . | . . . Reused . | . . . Traps Extracted . | . . . Installed . | . . . Triggered . | . . . Machines | -11 -10 -9 ---------- Run | Yrd Mat Mat Machines Disabled . | . . . Max in Single Turn . | . . . Machines Repaired . | . . . Machines Dismantled . | . . . Machines Sabotaged . | . . . Overloaded Fab Kills . | . . . Hacking | -11 -10 -9 --------- Run | Yrd Mat Mat Machines Accessed 3 | . 2 1 Terminals 2 | . 2 . Fabricators . | . . . Repair Stations . | . . . Recycling Units . | . . . Scanalyzers 1 | . . 1 Garrison Access . | . . . Total Hacks 11 | . 9 2 Successful 8 | . 6 2 Failed 3 | . 3 . Catastrophic . | . . . Database Lockouts . | . . . Manual . | . . . Terminals 9 | . 9 . Fabricators . | . . . Repair Stations . | . . . Recycling Units . | . . . Scanalyzers 2 | . . 2 Garrison Access . | . . . Terminal Hacks 6 | . 6 . Record 2 | . 2 . Alert Level 2 | . 2 . Locate Traps 1 | . 1 . Maintenance Status 1 | . 1 . Fabricator Hacks . | . . . Repair Station Hacks . | . . . Recycling Unit Hacks . | . . . Scanalyzer 2 | . . 2 Insert Component 1 | . . 1 Analyze 1 | . . 1 Garrison Access Hacks . | . . . Unauthorized Hacks . | . . . Terminals . | . . . Fabricators . | . . . Repair Stations . | . . . Recycling Units . | . . . Scanalyzers . | . . . Garrison Access . | . . . Data Cores Recovered . | . . . Used . | . . . Hacking Detections 2 | . 2 . Full Trace Events 2 | . 2 . Feedback Events . | . . . Feedback Blocked . | . . . Robot Schematics Acquired . | . . . Robots Built . | . . . Authchips . | . . . Time . | . . . Total Robot Build Rating . | . . . Part Schematics Acquired 1 | . . 1 Parts Built . | . . . Authchips . | . . . Time . | . . . Total Part Build Rating . | . . . Parts Repaired . | . . . Time . | . . . Parts Recycled . | . . . Recycled Matter . | . . . Retrieved Matter . | . . . Retrieved Components . | . . . Parts Scanalyzed 1 | . . 1 Part Schematics Acquired 1 | . . 1 Parts Damaged . | . . . Bothacking | -11 -10 -9 ------------ Run | Yrd Mat Mat Used RIF Installer . | . . . Robots Hacked . | . . . Non-combat . | . . . Combat . | . . . Robot Hacks Applied . | . . . Relay Couplers Released . | . . . Fabnet Peak Effective % . | . . . Robots Rewired . | . . . Allies Hacked . | . . . Hacks Repelled . | . . . Allies | -11 -10 -9 -------- Run | Yrd Mat Mat Total Allies . | . . . Largest Group . | . . . Highest-Rated Group . | . . . Highest-Rated Ally . | . . . Total Orders . | . . . Ally Attacks . | . . . Total Damage . | . . . Kills . | . . . Allies Corrupted . | . . . Allies Melted . | . . . Intel | -11 -10 -9 ------- Run | Yrd Mat Mat Robot Analysis Total . | . . . Derelict Logs Recovered . | . . . Drone Launches . | . . . Drone Recoveries . | . . . Exploration | -11 -10 -9 ------------- Run | Yrd Mat Mat Turns Passed 10734 | 10191 284 259 Spaces Moved 2013 | 1693 168 152 Core 61 | 17 . 44 Treads . | . . . Legs 1936 | 1676 168 92 Wheels . | . . . Hover . | . . . Flight 16 | . . 16 Fastest Speed 50 | 50 120 50 Average Speed 118 | 119 120 110 Slowest Speed 220 | 120 120 220 Overloaded Moves . | . . . Propulsion Burnouts . | . . . Robots Hopped . | . . . Cave-ins Triggered . | . . . Exploration Rate (%) 37 | 67 30 14 Regions Visited 2 Branch Regions . Pre-discovered Areas . | . . . Known Exits Taken . | . . . Unknown Exits Taken 2 | 1 1 . Scrap Searched . | . . . Spaces Dug . | . . . Terrain Destroyed . | . . . Melee . | . . . Projectile . | . . . AOE . | . . . Terrain Rammed . | . . . Walls Destroyed . | . . . Machines Disabled . | . . . Actions | -11 -10 -9 --------- Run | Yrd Mat Mat Total 10314 | 9865 216 233 Wait 8181 | 8155 . 26 Move 2011 | 1692 167 152 Hop . | . . . Pick Up 28 | 10 11 7 Fast Attach . | . . . Attach 27 | 7 6 14 Detach 9 | 1 2 6 Swap . | . . . Drop 17 | . 7 10 Fire 34 | . 21 13 Melee . | . . . Ram 5 | . . 5 Kick 2 | . 2 . Crush . | . . . Escape Stasis . | . . . Rewire . | . . . Trap . | . . . Miscellaneous . | . . . Route ------- -11/Scrapyard -10/Materials (discovered 2 exits: *Mat / [*Min]) -9/Materials History --------- Turn | Location | Event 2 | -11/Scrapyard | Discovered new exit (range 16) 10192 | -11/Scrapyard | Entered Materials 10193 | -10/Materials | Build established: Mutant 10440 | -10/Materials | Discovered new exit (range 10) 10466 | -10/Materials | Discovered new exit (range 8) 10476 | -10/Materials | Entered another Materials area 10476 | -9/Materials | Evolved 2 slots: Propulsion x2 10720 | -9/Materials | Core integrity fell below 50% 10732 | -9/Materials | Core integrity fell below 20% 10735 | -9/Materials | Destroyed by G-34 Mercenary with Small Laser Last Messages --------------- 10686_ S-10 Pest destroyed. [Achievement: Fist Fight] 10687_ Acquired 20 matter. 10688_ Flight Unit destroyed. 10717_ Ion Engine destroyed. 10719_ Connecting with Scanalyzer... 10719_ Current location identified: Materials >>Insert(ECM Suite) Scanning ECM Suite... Ready to analyze. >>Scanalyze Scanning: ECM Suite... Schematic downloaded. Schematics can be used at fabricators to build something. View all schematics in possession via the status screen. 10723_ S-10 Pest destroyed. 10724_ Sensor Array destroyed. 10726_ EM Pulse Gun destroyed. 10728_ Acquired 12 matter. 10729_ Slammed into S-10 Pest. Map ----- +----------------------------------------------------+ | ??????????????????????????## ! ##???????? | | ?????????????????????????? + ##???????? | | ??????????????????????????## ##???????? | | ??????????????????????????## """ """ ###### ? # | | ?????????????????????????? # """ """ ###### # | | ?????????????????????????? # """ """ + # | | ?????????????????????????? # # #### # | | ?????????????????????????? ########### #####?## | | ?????????????????????????? ########### ##?????? | | ?????????????????????????????##**!!!!#%# ?????? | | ?????????????????????????????##**!!!!# # ?????? | | ???????????????????????????#### # # ?????? | | ????????????????????##+#???#### ! # # ?????? | | ????????????????????## =%= # ?????? | | ????????????????????## ##### ######## !# ?????? | | ?????????????????????# ##### ######## # ?????? | | ?????????????????????# #####+#####?## ##?????? | | ????????????????????## # #?## ##?????? | | ????????????????????# # #?## ##?????? | | ????????????????????# + """ #?## ##?????? | | ????????????????????#YY# """ #?## ##?????? | | ????????????????????#g # """ "" #?## ##?????? | | ????????????????????# # """ #?## ##?????? | | ????????????????????# =#g S" #?## ##?##### | | ????????????????????#s*g #?## =# # | | ????????????????????# @########+#####= + # | | ?????????????###????# #???# ### [# # | | ??????????#### ### ##### ### # # | | ????????# "" #? # | | ????????# T #?? # | | ??????????#### ########## ######???#### | | ?????????????####??????????# #???????????? | | ???????????????????????????########???????????? | | ??????????????????????????????????????????????? | | ??????????????????????????????????????????????? | | | | | | | | | | | | | | | | | | | | | | | | | | | | | | | +----------------------------------------------------+ Best States ------------- Heat Dissipation 28 Energy Generation 10 Energy Capacity 250 Matter Stores 299 Matter Capacity 300 Sight Range 16 Robot Scan Range 14 Terrain Scan Density 10 ECM Strength 1 Armor Coverage 150 Evasion (%) 55 Item Schematics ----------------- ECM Suite | -9/Materials | Scanalyzed Robot Schematics ------------------ None Fabricated ------------ Nothing Alien Tech Used ----------------- None Achievements -------------- Fist Fight One Hack Too Far Challenges ------------ None Game ------ Seed MagneticGrenadeRail Manual? 0 Play Time 00:51:42 Cumulative 2.0 hours Start 2024.06.09 @ 22:34:11 End 2024.06.10 @ 01:02:44 Sessions 2 Manual Loads 0 Difficulty Rogue Special Mode None Game No. 3 Rogue 3 Adventurer 0 Explorer 0 Win Type - Total 0 Types 0/0/0/0/0/0/0/0/0 Lore% 0 Gallery% 1 Achievement% 2 Wizard Run 0 Options --------- Layout 0 ASCII 0 Keyboard 0 Movement Mouse Keybinds 0 Fullscreen 2 Font 18/TerminusBold Map View 76x50 Zoom Use 0% Tactical HUD 1 Map Filters NONE Filters NONE Steam 1 RUN: 5461955c-d0f5-4ffc-81e9-a3276016b66e